bitfinex/quotes_BTCUSD_20251117
["timestamp","ask_amount","ask_price","bid_price","bid_amount"]
[1763401131201,0.00044063,93578.0,93577.0,0.00269542]
[1763401136969,2.39480942,93578.0,93577.0,0.00269542]
[1763401137181,2.35338804,93578.0,93577.0,0.00269542]
[1763401137391,2.42164745,93578.0,93577.0,0.00269542]
[1763401138036,2.42164745,93578.0,93577.0,0.00169542]
[1763401138501,2.49778266,93578.0,93577.0,0.00169542]
[1763401138905,2.53551575,93578.0,93577.0,0.00169542]
[1763401139106,2.53557238,93578.0,93577.0,0.00169542]
[1763401139720,2.42166032,93578.0,93577.0,0.00169542]
[1763401140237,2.46043717,93578.0,93577.0,0.00169542]
[1763401140467,2.42266032,93578.0,93577.0,0.00169542]
[1763401140921,2.47366032,93578.0,93577.0,0.00169542]
[1763401141131,2.49571087,93578.0,93577.0,0.00169542]
[1763401141569,2.44571087,93578.0,93577.0,0.00169542]
[1763401141800,2.49571087,93578.0,93577.0,0.00169542]
[1763401142074,2.42366032,93578.0,93577.0,0.00169542]
[1763401142718,2.51143524,93578.0,93577.0,0.00169542]
[1763401143134,2.47366032,93578.0,93577.0,0.00169542]
[1763401143349,2.47366032,93578.0,93509.0,0.03313]
[1763401143350,0.10354874,93556.0,93555.0,9.7862008]
[1763401143555,2.38327444,93556.0,93555.0,9.7862008]
[1763401143985,2.38327444,93556.0,93555.0,9.0635273]
[1763401143986,2.49187922,93556.0,93555.0,9.0635273]
[1763401144393,2.49187922,93556.0,93555.0,9.06143188]
[1763401144601,2.49661857,93556.0,93555.0,9.06143188]
[1763401145213,2.49661857,93556.0,93555.0,9.03938133]
[1763401145417,2.47048336,93556.0,93555.0,9.03938133]
[1763401145933,2.49294347,93556.0,93555.0,9.03938133]
[1763401146145,2.44294347,93556.0,93555.0,6.90118381]
[1763401146350,0.21384427,93526.0,93500.0,12.0]
[1763401146644,1.04681974,93501.0,93500.0,12.0]
[1763401146858,1.003401,93507.0,93500.0,12.0]
[1763401147279,1.12516957,93520.0,93500.0,12.0]
[1763401147280,1.003401,93517.0,93500.0,12.0]
[1763401147493,1.003401,93509.0,93507.0,0.0418]
[1763401147964,1.003401,93516.0,93508.0,0.10394]
[1763401148170,1.003401,93516.0,93508.0,0.08352854]
[1763401148382,1.08219092,93517.0,93515.0,0.07493]
[1763401148593,0.00044009,93517.0,93516.0,0.0418]
[1763401148799,1.028381,93516.0,93508.0,0.03313]
[1763401149015,1.003401,93501.0,93500.0,12.003]
[1763401149237,1.003401,93501.0,93500.0,12.0]
[1763401149463,0.21390145,93501.0,93500.0,12.002]
[1763401149679,1.21730245,93501.0,93500.0,12.002]
[1763401149888,1.25877245,93501.0,93500.0,12.0]
[1763401150095,1.003401,93507.0,93500.0,12.0]
[1763401150305,1.003401,93502.0,93500.0,12.03313]
[1763401150499,1.03558405,93501.0,93500.0,12.0]
[1763401150699,1.03558405,93501.0,93500.0,12.003]
[1763401151134,1.2909555,93501.0,93500.0,12.0]
[1763401151363,1.3569055,93501.0,93500.0,12.0]
[1763401151549,1.42690991,93501.0,93500.0,12.0]
[1763401152115,1.06216972,93501.0,93500.0,12.0]
[1763401152319,1.03558405,93501.0,93500.0,12.002]
[1763401152689,1.003401,93501.0,93500.0,12.0]
[1763401152837,1.003401,93509.0,93500.0,12.0]
[1763401153159,1.003401,93502.0,93500.0,12.001]
[1763401153435,1.003401,93509.0,93500.0,12.001]
[1763401153605,0.03217988,93504.0,93500.0,12.001]
[1763401153755,1.003401,93503.0,93500.0,12.0]
[1763401153956,1.044871,93501.0,93500.0,12.0]
[1763401154160,1.07162966,93501.0,93500.0,12.0]
[1763401154596,1.03015966,93501.0,93500.0,12.0]
[1763401154825,1.07162966,93501.0,93500.0,12.0]
[1763401154976,1.13757966,93501.0,93500.0,12.0]
[1763401155754,1.03015966,93501.0,93500.0,12.001]
[1763401155965,1.003401,93503.0,93500.0,12.001]
[1763401156614,0.00044009,93517.0,93500.0,12.001]
[1763401156615,0.03217888,93507.0,93500.0,12.0]
[1763401156832,1.003401,93506.0,93500.0,12.001]
[1763401157039,1.003401,93509.0,93500.0,12.0]
[1763401157213,0.03217888,93508.0,93505.0,0.0418]
[1763401157438,1.003401,93507.0,93500.0,12.001]
[1763401157640,2.0,93509.0,93507.0,0.00135616]
[1763401157894,2.0,93509.0,93500.0,12.001]
[1763401158747,2.0,93509.0,93500.0,12.0]
[1763401158972,2.0,93509.0,93500.0,12.001]
[1763401159385,2.0,93509.0,93500.0,12.0]
[1763401159587,2.0,93509.0,93500.0,12.001]
[1763401160996,0.21388659,93508.0,93500.0,12.001]
[1763401161192,0.00066,93501.0,93500.0,12.001]
[1763401161398,2.01043304,93501.0,93500.0,12.001]
[1763401161752,2.07604304,93501.0,93500.0,12.001]
[1763401161965,2.07604304,93501.0,93500.0,12.0]
[1763401162390,2.10287479,93501.0,93500.0,12.001]
[1763401162598,2.03660479,93501.0,93500.0,12.0]
[1763401163028,2.03660479,93501.0,93500.0,12.001]
[1763401163029,2.00977304,93501.0,93500.0,12.001]
[1763401163237,0.00976958,93501.0,93500.0,12.0921]
[1763401163440,2.00976958,93501.0,93500.0,12.00255402]
[1763401163877,2.00976958,93501.0,93500.0,12.00155402]
[1763401164080,1.84370387,93509.0,93500.0,12.00155402]
[1763401164309,2.0,93509.0,93500.0,12.0]
[1763401164501,2.06396,93501.0,93500.0,12.0]
[1763401164713,2.0,93507.0,93500.0,12.0]
[1763401165139,2.0,93502.0,93500.0,12.001]
[1763401165366,2.21456145,93501.0,93500.0,12.001]
[1763401165571,2.2413932,93501.0,93500.0,12.0]
[1763401165742,2.3070032,93501.0,93500.0,12.001]
[1763401166105,2.3070032,93501.0,93500.0,12.0]
[1763401166311,2.09310175,93501.0,93500.0,12.0]
[1763401166546,2.3070032,93501.0,93500.0,12.0]
[1763401166750,2.09310175,93501.0,93500.0,12.0]
[1763401166923,2.2413932,93501.0,93500.0,12.001]
[1763401167163,2.3070032,93501.0,93500.0,12.001]
[1763401167391,2.35042194,93501.0,93500.0,12.001]
[1763401167616,2.39777946,93501.0,93500.0,12.001]
[1763401167793,2.4229388,93501.0,93500.0,11.99436872]
[1763401168029,2.3729388,93501.0,93500.0,11.99436872]
[1763401168243,2.3729388,93501.0,93500.0,11.99336872]
[1763401168452,2.44777946,93501.0,93500.0,11.98739099]
[1763401168681,2.4229388,93501.0,93500.0,11.97692361]
[1763401168862,2.3729388,93501.0,93500.0,11.97592361]
[1763401169105,2.46045124,93501.0,93500.0,11.97592361]
[1763401169282,2.4229388,93501.0,93500.0,11.97592361]
[1763401169726,2.46044219,93501.0,93500.0,11.97592361]
[1763401169955,2.4229388,93501.0,93500.0,11.97592361]
[1763401170155,2.46044219,93501.0,93500.0,11.97747763]
[1763401170271,2.24630138,93501.0,93500.0,11.97747763]
[1763401170474,2.24696138,93501.0,93500.0,11.97747763]
[1763401170893,2.24796138,93501.0,93500.0,11.97747763]
[1763401171293,2.24696138,93501.0,93500.0,11.97747763]
[1763401171599,1.98405993,93501.0,93500.0,11.97747763]
[1763401172000,1.98305993,93501.0,93500.0,11.97747763]
[1763401172227,1.93964119,93501.0,93500.0,11.97747763]
[1763401172466,1.94064119,93501.0,93500.0,11.97747763]
[1763401173518,1.93964119,93501.0,93500.0,11.97747763]
[1763401175643,1.98305993,93501.0,93500.0,11.97747763]
[1763401175871,2.03305993,93501.0,93500.0,11.97747763]
[1763401176073,2.06766739,93501.0,93500.0,11.97747763]
[1763401176326,2.04282673,93501.0,93500.0,11.97747763]
[1763401176508,2.08033012,93501.0,93500.0,11.97747763]
[1763401176683,2.08669931,93501.0,93500.0,11.97747763]
[1763401176885,2.06766739,93501.0,93500.0,11.96352207]
[1763401177295,2.04282673,93501.0,93500.0,11.96352207]
[1763401177937,2.08032263,93501.0,93500.0,11.96352207]
[1763401178327,2.04382673,93501.0,93500.0,11.96352207]
[1763401178531,2.04382673,93501.0,93500.0,11.95305468]
[1763401178532,2.06766739,93501.0,93500.0,11.95305468]
[1763401179116,2.04282673,93501.0,93500.0,11.95305468]
[1763401179336,1.99282673,93501.0,93500.0,11.95305468]
[1763401180556,1.99382673,93501.0,93500.0,11.95305468]
[1763401180755,2.04282673,93501.0,93500.0,11.95305468]
[1763401181404,2.25672818,93501.0,93500.0,11.95305468]
[1763401181594,2.20672818,93501.0,93500.0,11.95305468]
[1763401182037,2.20080682,93501.0,93500.0,11.95305468]
[1763401182870,2.16330944,93501.0,93500.0,11.95305468]
[1763401183581,2.16330944,93501.0,93500.0,11.94607765]
[1763401184520,2.16330944,93501.0,93500.0,11.93212329]
[1763401185181,1.94940799,93501.0,93500.0,11.93212329]
[1763401185411,1.88379799,93501.0,93500.0,11.93212329]
[1763401185748,1.94893799,93501.0,93500.0,11.93212329]
[1763401186118,2.16283944,93501.0,93500.0,11.93212329]
[1763401187065,1.98527951,93501.0,93500.0,11.93212329]
[1763401187963,2.07869825,93501.0,93500.0,11.20673277]
[1763401188169,2.1051632,93501.0,93500.0,11.20673277]
[1763401188373,2.1051632,93501.0,93500.0,11.20773277]
[1763401188503,2.1051632,93501.0,93500.0,11.1972655]
[1763401189136,2.1051632,93501.0,93500.0,11.1962655]
[1763401189558,2.0551632,93501.0,93500.0,11.1962655]
[1763401189806,2.1051632,93501.0,93500.0,11.1962655]
[1763401190186,2.07871142,93501.0,93500.0,11.1962655]
[1763401190672,2.06633179,93501.0,93500.0,11.1962655]
[1763401190839,2.02871142,93501.0,93500.0,11.1962655]
[1763401191243,2.05510344,93501.0,93500.0,11.1962655]
[1763401191462,2.06090096,93501.0,93500.0,11.1962655]
[1763401191665,2.09852218,93501.0,93500.0,11.1962655]
[1763401191816,2.06090096,93501.0,93500.0,11.1962655]
[1763401192359,2.11090096,93501.0,93500.0,11.1962655]
[1763401193380,2.1122971,93501.0,93500.0,11.1962655]
[1763401193591,2.11651147,93501.0,93500.0,11.1962655]
[1763401194177,2.11651147,93501.0,93500.0,10.55005085]
[1763401196330,2.06090096,93501.0,93500.0,10.55005085]
[1763401197760,2.06707681,93501.0,93500.0,10.55005085]
[1763401197966,2.13735274,93501.0,93500.0,10.55005085]
[1763401198171,2.11090096,93501.0,93500.0,10.55005085]
[1763401198358,2.06090096,93501.0,93500.0,10.55005085]
[1763401198755,2.01748222,93501.0,93500.0,10.55005085]
[1763401200543,2.01751204,93501.0,93500.0,10.55005085]
[1763401200939,2.06580306,93501.0,93500.0,10.55005085]
[1763401201152,2.17505004,93501.0,93500.0,10.55005085]
[1763401201505,2.13738256,93501.0,93500.0,10.55005085]
[1763401202119,2.0665295,93501.0,93500.0,10.55005085]
[1763401202320,2.02311076,93501.0,93500.0,10.55005085]
[1763401202868,1.93113901,93501.0,93500.0,10.55005085]
[1763401203061,1.99627901,93501.0,93500.0,10.55005085]
[1763401203258,1.93047901,93501.0,93500.0,10.55005085]
[1763401203462,1.99068029,93501.0,93500.0,10.55005085]
[1763401203744,1.83978147,93501.0,93500.0,10.55005085]
[1763401203953,1.81153715,93501.0,93500.0,10.55005085]
[1763401204393,1.83978148,93501.0,93500.0,10.54940085]
[1763401204626,1.88700656,93501.0,93500.0,9.82401033]
[1763401204843,1.93700656,93501.0,93500.0,9.82401033]
[1763401205495,1.93700656,93501.0,93500.0,8.05106508]
[1763401205698,1.93700656,93501.0,93500.0,6.72581078]
[1763401205901,1.93700656,93501.0,93500.0,6.55670686]
[1763401206104,1.93700656,93501.0,93500.0,6.36755883]
[1763401206640,1.93700656,93501.0,93500.0,5.59578484]
[1763401206861,1.93700656,93501.0,93500.0,5.45558484]
[1763401207079,1.93700656,93501.0,93500.0,5.11567841]
[1763401207416,1.93700656,93501.0,93500.0,4.77359166]
[1763401207619,1.93700656,93501.0,93500.0,4.63209986]
[1763401207821,1.93700656,93501.0,93500.0,4.03192261]
[1763401208357,1.93900656,93501.0,93500.0,3.9004503]
[1763401208587,1.93900656,93501.0,93500.0,3.44909362]
[1763401208811,1.93900656,93501.0,93500.0,3.08403826]
[1763401209041,1.93900656,93501.0,93500.0,3.0292866]
[1763401209265,1.93900656,93501.0,93500.0,2.66812471]
[1763401209519,1.93900656,93501.0,93500.0,2.55919522]
[1763401209747,1.93900656,93501.0,93500.0,2.13018461]
[1763401209975,1.93900656,93501.0,93500.0,1.99987521]
[1763401210221,1.93900656,93501.0,93500.0,1.26943737]
[1763401210454,0.04341874,93485.0,93460.0,0.0004]
[1763401210678,0.32089802,93488.0,93441.0,0.04663]
[1763401210679,1.47526972,93450.0,93449.0,13.81337337]
[1763401211126,0.03794,93459.0,93449.0,13.81337337]
[1763401211340,1.44047972,93458.0,93449.0,13.81337337]
[1763401211559,0.21399995,93458.0,93449.0,13.81337337]
[1763401211861,1.65507791,93450.0,93449.0,13.81337337]
[1763401212303,1.73892797,93450.0,93449.0,13.81337337]
[1763401212509,1.7679852,93450.0,93449.0,13.81337337]
[1763401212680,1.82779011,93450.0,93449.0,13.81337337]
[1763401212914,1.748734,93450.0,93449.0,13.81337337]
[1763401213130,1.74873404,93450.0,93449.0,13.81337337]
[1763401213302,1.73892797,93450.0,93449.0,13.81337337]
[1763401213683,1.77131011,93450.0,93449.0,13.81337337]
[1763401214029,1.77131011,93450.0,93449.0,13.81437337]
[1763401214336,1.77131011,93450.0,93449.0,13.81337337]
[1763401214563,1.82131011,93450.0,93449.0,13.81437337]
[1763401214717,1.89378608,93450.0,93449.0,13.81437337]
[1763401215102,1.89346506,93450.0,93449.0,13.81437337]
[1763401215302,1.89346506,93450.0,93449.0,13.81337337]
[1763401215724,1.80004632,93450.0,93449.0,13.81337337]
[1763401215926,1.77098909,93450.0,93449.0,13.81337337]
[1763401216126,1.77098909,93450.0,93449.0,13.81481587]
[1763401217563,1.80319304,93450.0,93449.0,13.81481587]
[1763401218386,1.92381067,93450.0,93449.0,13.81481587]
[1763401218800,1.80319304,93450.0,93449.0,13.81481587]
[1763401219000,1.77635298,93450.0,93449.0,13.81481587]
[1763401219199,1.85319307,93450.0,93449.0,13.81481587]
[1763401219438,1.80319307,93450.0,93449.0,13.81481587]
[1763401220385,1.88039196,93450.0,93449.0,13.81481587]
[1763401221507,1.82635298,93450.0,93449.0,13.81481587]
[1763401221716,1.85319307,93450.0,93449.0,13.81481587]
[1763401222135,1.86334465,93450.0,93449.0,13.81481587]
[1763401222545,1.89148906,93450.0,93449.0,13.81481587]
[1763401222756,1.86334465,93450.0,93449.0,13.81481587]
[1763401222968,1.77635298,93450.0,93449.0,13.81481587]
[1763401224111,1.85319307,93450.0,93449.0,13.81481587]
[1763401224540,1.88039196,93450.0,93449.0,13.81481587]
[1763401225074,1.90853637,93450.0,93449.0,13.81481587]
[1763401225210,1.88039196,93450.0,93449.0,13.81481587]
[1763401225413,1.85319307,93450.0,93449.0,13.81481587]
[1763401225887,1.88039196,93450.0,93449.0,13.81481587]
[1763401226210,1.85319307,93450.0,93449.0,13.81474117]
[1763401226663,1.88039196,93450.0,93449.0,13.81474117]
[1763401227240,1.88032658,93450.0,93449.0,13.81474117]
[1763401228680,1.80312769,93450.0,93449.0,13.81474117]
[1763401228890,1.7762876,93450.0,93449.0,13.81474117]
[1763401229330,1.80442957,93450.0,93449.0,13.81474117]
[1763401229746,1.7762876,93450.0,93449.0,13.81474117]
[1763401230319,2.05032957,93450.0,93449.0,13.81474117]
[1763401230519,2.0221876,93450.0,93449.0,13.81474117]
[1763401231597,2.05032957,93450.0,93449.0,13.81474117]
[1763401232321,2.0221876,93450.0,93449.0,13.81474117]
[1763401232516,2.02186658,93450.0,93449.0,13.81474117]
[1763401232715,2.09870668,93450.0,93449.0,13.81474117]
[1763401233828,2.09870668,93450.0,93449.0,13.81574117]
[1763401234003,2.42170668,93450.0,93449.0,13.81474117]
[1763401234204,2.45976996,93450.0,93449.0,13.81474117]
[1763401234412,2.42211928,93450.0,93449.0,13.81474117]
[1763401235785,2.42211928,93450.0,93449.0,13.31891592]
[1763401235935,2.44931817,93450.0,93449.0,13.31891592]
[1763401236471,2.48690674,93450.0,93449.0,13.31891592]
[1763401236673,2.44931817,93450.0,93449.0,13.31891592]
[1763401236881,2.24683691,93450.0,93449.0,12.48347052]
[1763401237054,2.03288076,93450.0,93449.0,12.48347052]
[1763401237254,2.24689895,93450.0,93449.0,12.48347052]
[1763401238239,2.24689895,93450.0,93449.0,12.47739324]
[1763401239072,2.20348021,93450.0,93449.0,12.47739324]
[1763401241849,2.17628132,93450.0,93449.0,12.46918717]
[1763401242090,2.42218132,93450.0,93449.0,12.46918717]
[1763401242468,2.44938021,93450.0,93449.0,12.46918717]
[1763401242671,2.44939393,93450.0,93449.0,12.46918717]
[1763401242917,2.44939393,93450.0,93449.0,11.93591068]
[1763401243153,2.49281267,93450.0,93449.0,11.93591068]
[1763401244768,2.44939393,93450.0,93449.0,11.93591068]
[1763401245170,2.17629504,93450.0,93449.0,11.93591068]
[1763401245352,2.12629504,93450.0,93449.0,11.93591068]
[1763401245553,2.20349393,93450.0,93449.0,11.93591068]
[1763401246141,2.24691267,93450.0,93449.0,11.93591068]
[1763401246345,2.20349393,93450.0,93449.0,11.93591068]
[1763401246653,2.17629504,93450.0,93449.0,11.93591068]
[1763401247079,2.23286729,93450.0,93449.0,11.93591068]
[1763401247283,2.17629504,93450.0,93449.0,11.93591068]
[1763401247481,2.24691267,93450.0,93449.0,11.40645512]
[1763401247640,2.24691267,93450.0,93449.0,11.04125714]
[1763401248247,2.24691267,93450.0,93449.0,10.56032698]
[1763401248465,2.25251533,93450.0,93449.0,9.85720082]
[1763401248678,2.25251533,93450.0,93449.0,9.45823857]
[1763401249077,2.25251533,93450.0,93449.0,9.2894196]
[1763401249398,2.25251533,93450.0,93449.0,8.83777822]
[1763401249619,2.25251533,93450.0,93449.0,8.60630078]
[1763401249829,2.25251533,93450.0,93449.0,8.41212845]
[1763401250272,2.25351533,93450.0,93449.0,7.81962837]
[1763401250411,2.07730657,93450.0,93449.0,7.81962837]
[1763401250610,2.07630657,93450.0,93449.0,7.81962837]
[1763401250815,2.07830657,93450.0,93449.0,6.23981959]
[1763401251090,2.07830657,93450.0,93449.0,4.86962327]
[1763401251293,2.1348262,93450.0,93449.0,3.56512855]
[1763401251494,2.07830657,93450.0,93449.0,2.02651213]
[1763401251766,2.07830657,93450.0,93449.0,0.18947646]
[1763401251997,2.07830657,93450.0,93449.0,3e-08]
[1763401252239,0.36641874,93447.0,93430.0,0.013]
[1763401252412,1.6806897,93445.0,93444.0,9.95]
[1763401252620,1.71302018,93445.0,93444.0,9.95]
[1763401252945,1.81704917,93445.0,93444.0,9.95]
[1763401253504,1.81704917,93445.0,93444.0,9.85163495]
[1763401253714,2.06294917,93445.0,93444.0,9.60573495]
[1763401254266,1.81804917,93445.0,93444.0,9.60573495]
[1763401254536,1.81804917,93445.0,93444.0,9.58654178]
[1763401254897,1.81804917,93445.0,93444.0,8.29806404]
[1763401255111,1.81803487,93445.0,93444.0,6.58009372]
[1763401255470,1.8744891,93445.0,93444.0,4.96992563]
[1763401255673,1.81803487,93445.0,93444.0,3.57668047]
[1763401255855,1.81803487,93445.0,93444.0,1.59123322]
[1763401256203,1.81803487,93445.0,93410.0,0.10394398]
[1763401256204,0.038928,93412.0,93410.0,0.10394398]
[1763401256404,1.77357244,93411.0,93410.0,0.10394398]
[1763401256539,1.77932724,93411.0,93410.0,0.01066398]
[1763401256745,1.83291277,93411.0,93410.0,0.01066398]
[1763401257345,1.7619899,93411.0,93410.0,0.01066398]
[1763401257780,1.8119899,93411.0,93410.0,0.01066398]
[1763401258607,1.84017979,93411.0,93410.0,0.01066398]
[1763401258807,1.8119899,93411.0,93410.0,0.01166398]
[1763401260103,1.8119899,93411.0,93410.0,0.01066398]
[1763401260276,1.84017979,93411.0,93410.0,0.01066398]
[1763401260485,1.83335912,93411.0,93410.0,0.01066398]
[1763401260703,1.83334045,93411.0,93410.0,0.01066398]
[1763401261543,1.87675919,93411.0,93410.0,0.01066398]
[1763401261753,0.61248823,93411.0,93410.0,0.01066398]
[1763401261979,2.41641874,93401.0,93378.0,0.00610697]
[1763401262176,2.48663911,93401.0,93378.0,0.00610697]
[1763401262399,2.5148139,93401.0,93400.0,5.87172911]
[1763401262608,2.5148139,93401.0,93400.0,5.86612503]
[1763401263636,2.4648139,93401.0,93400.0,5.86290868]
[1763401263855,2.5148139,93401.0,93400.0,5.86290868]
[1763401264071,2.14839516,93401.0,93400.0,5.8642957]
[1763401264712,2.47139516,93401.0,93400.0,5.8642957]
[1763401264982,2.14939516,93401.0,93400.0,5.8642957]
[1763401265224,2.47139516,93401.0,93400.0,5.8642957]
[1763401265430,2.47239516,93401.0,93400.0,5.8642957]
[1763401265636,2.5148139,93401.0,93400.0,5.8642957]
[1763401266269,2.5148139,93401.0,93400.0,5.85518514]
[1763401266486,2.5148139,93401.0,93400.0,5.8405962]
[1763401266691,2.5148139,93401.0,93400.0,5.8339697]
[1763401267667,2.6286139,93401.0,93400.0,5.8339697]
[1763401267870,2.6286139,93401.0,93400.0,5.75556754]
[1763401268121,2.6276139,93401.0,93400.0,5.75556754]
[1763401268406,2.5158139,93401.0,93400.0,5.74515117]
[1763401268620,2.5148139,93401.0,93400.0,5.74515117]
[1763401268971,2.5168139,93401.0,93400.0,5.64678612]
[1763401269175,2.10039516,93401.0,93400.0,5.64678612]
[1763401269379,2.15039516,93401.0,93400.0,5.64678612]
[1763401269593,2.47339516,93401.0,93400.0,5.64678612]
[1763401269993,2.47339516,93401.0,93400.0,5.5857578]
[1763401270222,2.5148139,93401.0,93400.0,5.4847113]
[1763401270664,2.5158139,93401.0,93400.0,5.46650523]
[1763401270878,2.5148139,93401.0,93400.0,5.44550623]
[1763401271079,2.5148139,93401.0,93400.0,5.42207455]
[1763401271251,2.5158139,93401.0,93400.0,4.93772196]
[1763401271805,2.5158139,93401.0,93400.0,4.90549546]
[1763401272534,2.5158139,93401.0,93400.0,4.89501344]
[1763401273090,2.5158139,93401.0,93400.0,3.0308558]
[1763401273301,2.5158139,93401.0,93400.0,1.66259745]
[1763401273503,2.5158139,93401.0,93400.0,5e-08]
[1763401273941,0.00049,93399.0,93398.0,5e-08]
[1763401274146,2.94920625,93399.0,93398.0,5e-08]
[1763401274348,2.5148039,93399.0,93398.0,5e-08]
[1763401275254,2.48251796,93398.0,93397.0,1e-08]
[1763401275432,2.48251796,93398.0,93392.0,0.00022688]
[1763401275433,0.00049,93393.0,93392.0,1e-08]
[1763401275599,2.44920625,93393.0,93392.0,1e-08]
[1763401275936,2.51481547,93393.0,93392.0,1e-08]
[1763401276892,2.52092244,93393.0,93392.0,1e-08]
[1763401277197,2.55820679,93393.0,93392.0,1e-08]
[1763401277372,0.36641874,93392.0,93378.0,0.00610697]
[1763401277624,0.91690874,93389.0,93378.0,0.00610697]
[1763401277826,0.50527261,93389.0,93378.0,0.00610697]
[1763401278028,0.09341874,93379.0,93378.0,0.00610697]
[1763401278229,2.49821625,93379.0,93378.0,0.00610697]
[1763401278362,0.36641874,93376.0,93370.0,0.0024]
[1763401278550,2.41690874,93371.0,93370.0,0.0024]
[1763401278748,2.44920625,93371.0,93370.0,0.0024]
[1763401278981,2.49821625,93371.0,93370.0,0.0024]
[1763401279218,2.49865525,93371.0,93370.0,0.0024]
[1763401279621,2.5029541,93371.0,93370.0,0.0024]
[1763401280327,2.50252579,93371.0,93370.0,0.0024]
[1763401280991,2.50352579,93371.0,93370.0,0.0024]
[1763401281818,2.50252579,93371.0,93370.0,0.0024]
[1763401282345,2.17349463,93371.0,93370.0,0.0024]
[1763401282740,2.08610705,93371.0,93370.0,0.0024]
[1763401282958,2.13610705,93371.0,93370.0,0.0024]
[1763401283401,2.13610705,93371.0,93370.0,0.00302301]
[1763401283578,2.08610705,93371.0,93370.0,0.00302301]
[1763401284051,2.12350978,93371.0,93370.0,0.00302301]
[1763401284381,2.40910705,93371.0,93370.0,0.00302301]
[1763401284653,2.08610705,93371.0,93370.0,0.00302301]
[1763401284857,2.08610705,93371.0,93370.0,0.00402301]
[1763401285071,2.40910705,93371.0,93370.0,0.00302301]
[1763401285419,2.40910705,93371.0,93370.0,0.00402301]
[1763401286989,2.36009705,93371.0,93370.0,0.00402301]
[1763401287325,2.36003536,93371.0,93370.0,0.00402301]
[1763401287524,2.40911536,93371.0,93370.0,0.00402301]
[1763401287827,2.25002846,93371.0,93370.0,0.00402301]
[1763401289182,2.25002846,93371.0,93370.0,0.00302301]
[1763401289530,2.27815364,93371.0,93370.0,0.00302301]
[1763401289861,2.25002846,93371.0,93370.0,0.00302301]
[1763401290068,2.20094846,93371.0,93370.0,0.00302301]
[1763401290294,2.24024565,93371.0,93370.0,0.00302301]
[1763401290497,2.27813328,93371.0,93370.0,0.00302301]
[1763401291849,2.2500081,93371.0,93370.0,0.00302301]
[1763401292659,2.3000081,93371.0,93370.0,0.00302301]
[1763401293949,2.3000081,93371.0,93370.0,0.00402301]
[1763401294167,2.37283,93371.0,93370.0,0.00402301]
[1763401294576,2.04983,93371.0,93370.0,0.00402301]
[1763401294775,2.00172,93371.0,93370.0,0.00402301]
[1763401294980,2.37283,93371.0,93370.0,0.00402301]
[1763401295183,2.40096346,93371.0,93370.0,0.00402301]
[1763401295395,2.37283,93371.0,93370.0,0.00402301]
[1763401297558,2.36783,93371.0,93370.0,0.00402301]
[1763401299651,0.323,93370.0,93350.0,0.0004]
[1763401299866,2.336735,93368.0,93367.0,76.20860931]
[1763401300073,2.34649745,93368.0,93367.0,76.20860931]
[1763401300267,2.46686745,93368.0,93367.0,76.20860931]
[1763401300711,2.46732532,93368.0,93367.0,76.20860931]
[1763401301018,2.49124112,93368.0,93367.0,76.20960931]
[1763401301411,2.54754366,93368.0,93367.0,76.20960931]
[1763401301977,2.49124112,93368.0,93367.0,76.20960931]
[1763401302173,2.49124112,93368.0,93367.0,76.15154746]
[1763401303503,2.49124112,93368.0,93367.0,76.15054746]
[1763401304402,2.49124112,93368.0,93367.0,76.04947425]
[1763401306186,2.46686745,93368.0,93367.0,76.04959311]
[1763401306387,2.49124112,93368.0,93367.0,76.04959311]
[1763401307049,2.47318202,93368.0,93367.0,76.04959311]
[1763401307262,2.49124112,93368.0,93367.0,76.04959311]
[1763401308243,2.53465986,93368.0,93367.0,76.04959311]
[1763401309593,2.80307821,93368.0,93367.0,76.04959311]
[1763401309795,2.55717821,93368.0,93367.0,76.03910931]
[1763401311919,2.55717821,93368.0,93367.0,76.0325441]
[1763401313330,1.07291022,93368.0,93367.0,74.01305613]
[1763401313786,1.04853655,93368.0,93367.0,74.01292962]
[1763401313975,1.04853655,93368.0,93367.0,73.89019088]
[1763401314171,1.10483502,93368.0,93367.0,73.89019088]
[1763401314482,1.10483502,93368.0,93367.0,73.79022638]
[1763401314648,1.04853655,93368.0,93367.0,73.68327141]
[1763401314854,1.04853655,93368.0,93367.0,73.66407824]
[1763401315119,1.04853655,93368.0,93367.0,73.56411373]
[1763401315318,0.99853655,93368.0,93367.0,73.46414923]
[1763401315611,0.72553655,93368.0,93367.0,73.46414923]
[1763401315769,0.72653655,93368.0,93367.0,73.46414923]
[1763401315977,0.72553655,93368.0,93367.0,73.46414923]
[1763401316379,1.04953655,93368.0,93367.0,73.46414923]
[1763401317930,1.04953655,93368.0,93367.0,72.07623987]
[1763401318144,1.00611781,93368.0,93367.0,71.21654367]
[1763401318327,1.00611781,93368.0,93367.0,70.35684747]
[1763401318527,1.03424052,93368.0,93367.0,70.35684747]
[1763401318712,0.62474307,93368.0,93367.0,70.35684747]
[1763401319110,0.62374307,93368.0,93367.0,70.35684747]
[1763401319519,0.62374307,93368.0,93367.0,69.32732147]
[1763401319726,0.94674307,93368.0,93367.0,69.32732147]
[1763401320175,0.62374307,93368.0,93367.0,69.32732147]
[1763401320385,0.48085472,93368.0,93367.0,69.32732147]
[1763401320801,0.80385472,93368.0,93367.0,69.32732147]
[1763401321006,0.85335472,93368.0,93367.0,69.32732147]
[1763401321218,0.53035472,93368.0,93367.0,69.32732147]
[1763401321443,0.92585422,93368.0,93367.0,69.32732147]
[1763401323137,0.9258551,93368.0,93367.0,69.32732147]
[1763401324887,0.9258551,93368.0,93367.0,69.32720261]
[1763401326222,0.96927384,93368.0,93367.0,69.32720261]
[1763401326427,0.97488166,93368.0,93367.0,69.32720261]
[1763401328195,0.93146292,93368.0,93367.0,69.32720261]
[1763401328396,0.9258551,93368.0,93367.0,69.32720261]
[1763401328820,0.6028551,93368.0,93367.0,69.32720261]
[1763401329021,0.9258551,93368.0,93367.0,69.32720261]
[1763401329228,0.63103936,93368.0,93367.0,69.32720261]
[1763401329430,0.9258551,93368.0,93367.0,69.32720261]
[1763401332745,0.5528551,93368.0,93367.0,69.32720261]
[1763401333376,0.6028551,93368.0,93367.0,69.32720261]
[1763401333515,0.9258551,93368.0,93367.0,69.32720261]
[1763401333895,0.8758551,93368.0,93367.0,69.32720261]
[1763401334544,0.96927384,93368.0,93367.0,69.32720261]
[1763401335074,1.02552538,93368.0,93367.0,69.32720261]
[1763401335524,0.97488181,93368.0,93367.0,69.32720261]
[1763401336208,1.031244,93368.0,93367.0,69.32720261]
[1763401336411,1.0312434,93368.0,93367.0,69.32720261]
[1763401336613,0.93146307,93368.0,93367.0,69.32720261]
[1763401337622,0.98782466,93368.0,93367.0,69.32720261]
[1763401338212,0.93425232,93368.0,93367.0,67.41108253]
[1763401338421,0.93425232,93368.0,93367.0,66.98123494]